[Event "*** Titled Tuesday Blitz"]
[Site "Chess.com"]
[Date "2020.11.24"]
[Round "1"]
[White "vinniethepooh"]
[Black "poneis_malditos"]
[Result "1-0"]
[WhiteElo "2609"]
[BlackElo "2313"]
[TimeControl "180+1"]
[EndTime "10:17:19 PST"]
[Termination "vinniethepooh won by resignation"]

1. d4 {[%clk 0:03:00.9]} 1... d5 {[%clk 0:02:59.7]} 2. c4 {[%clk 0:02:59.7]}
2... c6 {[%clk 0:03:00.2]} 3. Nc3 {[%clk 0:02:59]} 3... Nf6 {[%clk 0:03:00.6]}
4. cxd5 {[%clk 0:02:58]} 4... cxd5 {[%clk 0:03:00.6]} 5. f3 {[%clk 0:02:58.6]}
5... e6 {[%clk 0:02:53.7]} 6. e4 {[%clk 0:02:57.5]} 6... dxe4 {[%clk 0:02:53.8]}
7. fxe4 {[%clk 0:02:58.3]} 7... Bb4 {[%clk 0:02:53.4]} 8. Bg5 {[%clk 0:02:40.2]}
8... Bxc3+ {[%clk 0:02:48.9]} 9. bxc3 {[%clk 0:02:39.9]} 9... Qa5 {[%clk
0:02:49.8]} 10. Bxf6 {[%clk 0:02:05.1]} 10... Qxc3+ {[%clk 0:02:49.4]} 11. Kf2
{[%clk 0:02:05.6]} 11... gxf6 {[%clk 0:02:48.9]} 12. Rc1 {[%clk 0:02:03.5]}
12... Qb2+ {[%clk 0:02:27.3]} 13. Rc2 {[%clk 0:02:03.3]} 13... Qb6 {[%clk
0:02:22.8]} 14. Rxc8+ {[%clk 0:02:02.7]} 1-0

[Event "*** Titled Tuesday Blitz"]
[Site "Chess.com"]
[Date "2020.11.24"]
[Round "1"]
[White "Jumbo"]
[Black "Teo2000"]
[Result "1-0"]
[WhiteElo "2848"]
[BlackElo "2428"]
[TimeControl "180+1"]
[EndTime "10:17:24 PST"]
[Termination "Jumbo won by resignation"]

1. d4 {[%clk 0:02:58.8]} 1... Nf6 {[%clk 0:02:55.4]} 2. Bf4 {[%clk 0:02:58.7]}
2... d6 {[%clk 0:02:49.1]} 3. Nc3 {[%clk 0:02:57.5]} 3... Nbd7 {[%clk
0:02:44.1]} 4. Nf3 {[%clk 0:02:56.4]} 4... h6 {[%clk 0:02:43.7]} 5. e4 {[%clk
0:02:54.6]} 5... g5 {[%clk 0:02:41.7]} 6. Be3 {[%clk 0:02:53.6]} 6... c5 {[%clk
0:02:35.1]} 7. dxc5 {[%clk 0:02:43.6]} 7... dxc5 {[%clk 0:02:26.2]} 8. h3 {[%clk
0:02:42.7]} 8... Bg7 {[%clk 0:02:16]} 9. e5 {[%clk 0:02:37.9]} 9... Nh5 {[%clk
0:02:16.3]} 10. e6 {[%clk 0:02:34.2]} 10... fxe6 {[%clk 0:02:05.2]} 11. Bc4
{[%clk 0:02:31.3]} 11... O-O {[%clk 0:01:54]} 12. Nxg5 {[%clk 0:02:24]} 12...
Kh8 {[%clk 0:01:54.6]} 13. Qxh5 {[%clk 0:02:20.8]} 1-0

[Event "*** Titled Tuesday Blitz"]
[Site "Chess.com"]
[Date "2020.11.24"]
[Round "1"]
[White "Marty435"]
[Black "lacafi"]
[Result "1-0"]
[WhiteElo "2527"]
[BlackElo "2201"]
[TimeControl "180+1"]
[EndTime "10:17:24 PST"]
[Termination "Marty435 won by resignation"]

1. b3 {[%clk 0:03:00.9]} 1... f5 {[%clk 0:02:59.4]} 2. Bb2 {[%clk 0:03:01.8]}
2... Nf6 {[%clk 0:02:59.1]} 3. Nf3 {[%clk 0:03:02.3]} 3... g6 {[%clk 0:02:59.4]}
4. Bxf6 {[%clk 0:03:00.4]} 4... exf6 {[%clk 0:03:00.1]} 5. c4 {[%clk 0:03:01.3]}
5... Bg7 {[%clk 0:03:00.4]} 6. Nc3 {[%clk 0:03:01.3]} 6... O-O {[%clk
0:03:00.8]} 7. g3 {[%clk 0:02:59.3]} 7... Nc6 {[%clk 0:02:59.1]} 8. Bg2 {[%clk
0:02:59.5]} 8... Ne5 {[%clk 0:02:59.7]} 9. O-O {[%clk 0:02:57.8]} 9... c6 {[%clk
0:02:59.5]} 10. d4 {[%clk 0:02:57.6]} 10... Nf7 {[%clk 0:02:55.7]} 11. Qc2
{[%clk 0:02:51.9]} 11... Qc7 {[%clk 0:02:52.9]} 12. Rfe1 {[%clk 0:02:46.3]}
12... f4 {[%clk 0:02:52.9]} 13. e4 {[%clk 0:02:43.7]} 13... fxe3 {[%clk
0:02:50.8]} 14. Rxe3 {[%clk 0:02:43.9]} 14... d6 {[%clk 0:02:44.6]} 15. Rae1
{[%clk 0:02:43.3]} 15... Bf5 {[%clk 0:02:41.5]} 16. Qe2 {[%clk 0:02:37]} 16...
Rad8 {[%clk 0:02:37.4]} 17. Re7 {[%clk 0:02:36]} 17... Rd7 {[%clk 0:02:37.4]}
18. Nh4 {[%clk 0:02:31]} 18... Nh6 {[%clk 0:02:09.6]} 19. Nxf5 {[%clk
0:02:25.8]} 19... Nxf5 {[%clk 0:02:09.1]} 20. Qe6+ {[%clk 0:02:25.9]} 20... Rf7
{[%clk 0:02:03.6]} 21. Qxf7+ {[%clk 0:02:25.1]} 1-0

[Event "*** Titled Tuesday Blitz"]
[Site "Chess.com"]
[Date "2020.11.24"]
[Round "1"]
[White "Infernal_XaM"]
[Black "Aradej"]
[Result "1-0"]
[WhiteElo "2828"]
[BlackElo "2423"]
[TimeControl "180+1"]
[EndTime "10:18:05 PST"]
[Termination "Infernal_XaM won by resignation"]

1. d4 {[%clk 0:03:00.9]} 1... g6 {[%clk 0:02:59.9]} 2. c4 {[%clk 0:03:01.8]}
2... Bg7 {[%clk 0:02:59.9]} 3. Nc3 {[%clk 0:02:57.9]} 3... d6 {[%clk 0:03:00.1]}
4. e4 {[%clk 0:02:57.6]} 4... Nd7 {[%clk 0:03:00]} 5. h4 {[%clk 0:02:56.5]} 5...
h5 {[%clk 0:02:59]} 6. Bg5 {[%clk 0:02:52.4]} 6... c5 {[%clk 0:02:58.5]} 7. d5
{[%clk 0:02:51.6]} 7... Ngf6 {[%clk 0:02:57.9]} 8. Qd2 {[%clk 0:02:50.9]} 8...
O-O {[%clk 0:02:54.9]} 9. Nf3 {[%clk 0:02:50.7]} 9... a6 {[%clk 0:02:55.1]} 10.
a4 {[%clk 0:02:50]} 10... Ng4 {[%clk 0:02:51.9]} 11. Be2 {[%clk 0:02:49.1]}
11... Rb8 {[%clk 0:02:51.4]} 12. O-O {[%clk 0:02:45.2]} 12... Kh7 {[%clk
0:02:50.1]} 13. Rfe1 {[%clk 0:02:42.7]} 13... f6 {[%clk 0:02:48.4]} 14. Bf4
{[%clk 0:02:42.4]} 14... Nge5 {[%clk 0:02:48.3]} 15. Nxe5 {[%clk 0:02:40.9]}
15... dxe5 {[%clk 0:02:47.9]} 16. Be3 {[%clk 0:02:40]} 16... b6 {[%clk
0:02:45.6]} 17. a5 {[%clk 0:02:37.8]} 17... bxa5 {[%clk 0:02:44.7]} 18. Na4
{[%clk 0:02:37.3]} 18... Rb4 {[%clk 0:02:44.7]} 19. Nxc5 {[%clk 0:02:36.1]}
19... Nxc5 {[%clk 0:02:37.8]} 20. Bxc5 {[%clk 0:02:34.5]} 20... Bh6 {[%clk
0:02:37.7]} 21. Qc3 {[%clk 0:02:32.9]} 21... Rb8 {[%clk 0:02:33.1]} 22. Rxa5
{[%clk 0:02:32.4]} 22... Rxb2 {[%clk 0:02:31]} 23. Bxe7 {[%clk 0:02:21.4]} 23...
Qxe7 {[%clk 0:02:23.9]} 24. Qxb2 {[%clk 0:02:21.3]} 24... Qc7 {[%clk 0:02:23.1]}
25. Qa3 {[%clk 0:02:14.5]} 25... f5 {[%clk 0:02:18.7]} 26. Bd3 {[%clk
0:02:07.6]} 26... Qf7 {[%clk 0:02:14.9]} 27. exf5 {[%clk 0:02:06.5]} 27... gxf5
{[%clk 0:02:13.7]} 28. Rxe5 {[%clk 0:02:06.5]} 28... Qf6 {[%clk 0:02:09.3]} 29.
Qe7+ {[%clk 0:02:05.7]} 1-0

[Event "*** Titled Tuesday Blitz"]
[Site "Chess.com"]
[Date "2020.11.24"]
[Round "1"]
[White "hermionegrangermagic"]
[Black "northridgehawk"]
[Result "1-0"]
[WhiteElo "2585"]
[BlackElo "2289"]
[TimeControl "180+1"]
[EndTime "10:18:37 PST"]
[Termination "hermionegrangermagic won by resignation"]

1. e4 {[%clk 0:02:52.8]} 1... e5 {[%clk 0:02:59]} 2. Nf3 {[%clk 0:02:52.1]} 2...
Nc6 {[%clk 0:02:59.6]} 3. Bb5 {[%clk 0:02:51.5]} 3... a6 {[%clk 0:03:00]} 4. Ba4
{[%clk 0:02:51.1]} 4... Nf6 {[%clk 0:03:00.8]} 5. O-O {[%clk 0:02:50.2]} 5... b5
{[%clk 0:03:01.3]} 6. Bb3 {[%clk 0:02:49.2]} 6... Bc5 {[%clk 0:03:01.9]} 7. c3
{[%clk 0:02:48.6]} 7... d6 {[%clk 0:03:02.4]} 8. d4 {[%clk 0:02:48.5]} 8... Bb6
{[%clk 0:03:02.7]} 9. a4 {[%clk 0:02:42.5]} 9... Rb8 {[%clk 0:03:01.4]} 10. axb5
{[%clk 0:02:40.5]} 10... axb5 {[%clk 0:03:02.3]} 11. Bg5 {[%clk 0:02:26.2]}
11... h6 {[%clk 0:03:00.9]} 12. Bh4 {[%clk 0:02:26.3]} 12... g5 {[%clk
0:03:01.3]} 13. Bg3 {[%clk 0:02:26.4]} 13... Qe7 {[%clk 0:03:00.5]} 14. dxe5
{[%clk 0:02:01.8]} 14... dxe5 {[%clk 0:03:01.4]} 15. Nbd2 {[%clk 0:02:01.5]}
15... h5 {[%clk 0:02:52]} 16. h4 {[%clk 0:01:55.6]} 16... Bg4 {[%clk 0:02:46.2]}
17. hxg5 {[%clk 0:01:51.8]} 17... Nh7 {[%clk 0:02:30.7]} 18. Bh4 {[%clk
0:01:50.8]} 18... Rg8 {[%clk 0:02:27.4]} 19. g6 {[%clk 0:01:45]} 19... Bxf3
{[%clk 0:02:16.9]} 20. gxf7+ {[%clk 0:01:25]} 20... Kd7 {[%clk 0:02:14.8]} 21.
Nxf3+ {[%clk 0:01:20.8]} 21... Qd6 {[%clk 0:02:14.6]} 22. Qxd6+ {[%clk
0:01:18.3]} 22... cxd6 {[%clk 0:02:15.5]} 23. fxg8=Q {[%clk 0:01:18.4]} 23...
Rxg8 {[%clk 0:02:14.9]} 24. Bxg8 {[%clk 0:01:19.3]} 24... Nf8 {[%clk 0:02:15.1]}
25. Bd5 {[%clk 0:01:14.9]} 1-0

[Event "*** Titled Tuesday Blitz"]
[Site "Chess.com"]
[Date "2020.11.24"]
[Round "1"]
[White "romulocardoso"]
[Black "GameOverBro"]
[Result "0-1"]
[WhiteElo "2104"]
[BlackElo "2504"]
[TimeControl "180+1"]
[EndTime "10:18:45 PST"]
[Termination "GameOverBro won by checkmate"]

1. e4 {[%clk 0:03:00.8]} 1... d6 {[%clk 0:03:00.2]} 2. d4 {[%clk 0:03:00.3]}
2... Nf6 {[%clk 0:03:01]} 3. e5 {[%clk 0:02:59.5]} 3... dxe5 {[%clk 0:03:00.7]}
4. dxe5 {[%clk 0:03:00.4]} 4... Qxd1+ {[%clk 0:03:01]} 5. Kxd1 {[%clk
0:03:01.3]} 5... Ng4 {[%clk 0:03:01.6]} 6. Be3 {[%clk 0:02:54.3]} 6... Nc6
{[%clk 0:02:55.9]} 7. Bb5 {[%clk 0:02:48.6]} 7... Nxe5 {[%clk 0:02:52.4]} 8. Ne2
{[%clk 0:02:46.2]} 8... a6 {[%clk 0:02:51]} 9. Ba4 {[%clk 0:02:45.4]} 9... b5
{[%clk 0:02:50.9]} 10. Bb3 {[%clk 0:02:45.5]} 10... Bg4 {[%clk 0:02:49.9]} 11.
Nc3 {[%clk 0:02:44.1]} 11... O-O-O+ {[%clk 0:02:49.8]} 12. Ke1 {[%clk
0:02:40.5]} 12... e6 {[%clk 0:02:45.5]} 13. f3 {[%clk 0:02:40.5]} 13... Bf5
{[%clk 0:02:43.7]} 14. Kf2 {[%clk 0:02:39.8]} 14... h5 {[%clk 0:02:37.1]} 15.
Ng3 {[%clk 0:02:39.5]} 15... Bg6 {[%clk 0:02:36.5]} 16. Nge4 {[%clk 0:02:35]}
16... b4 {[%clk 0:02:31.3]} 17. Na4 {[%clk 0:02:31.2]} 17... Bxe4 {[%clk
0:02:30.6]} 18. fxe4 {[%clk 0:02:32.1]} 18... Ng4+ {[%clk 0:02:30.5]} 19. Kf3
{[%clk 0:02:31.4]} 19... Nxe3 {[%clk 0:02:30.7]} 20. Kxe3 {[%clk 0:02:32.3]}
20... g6 {[%clk 0:02:22.2]} 21. Rhf1 {[%clk 0:02:31.2]} 21... Bh6+ {[%clk
0:02:22.4]} 22. Kf3 {[%clk 0:02:29.2]} 22... Rd2 {[%clk 0:02:20.9]} 23. Nc5
{[%clk 0:02:24]} 23... Ne5+ {[%clk 0:02:18.9]} 24. Kg3 {[%clk 0:02:22.5]} 24...
h4+ {[%clk 0:01:54.9]} 25. Kh3 {[%clk 0:02:21.7]} 25... Be3 {[%clk 0:01:53.9]}
26. Nxa6 {[%clk 0:02:13.3]} 26... g5 {[%clk 0:01:54.2]} 27. g4 {[%clk
0:02:11.4]} 27... hxg3+ {[%clk 0:01:53.6]} 28. Kxg3 {[%clk 0:02:11]} 28... Rdxh2
{[%clk 0:01:50.9]} 29. Rxf7 {[%clk 0:01:40.7]} 29... R8h3# {[%clk 0:01:48.2]}
0-1

[Event "*** Titled Tuesday Blitz"]
[Site "Chess.com"]
[Date "2020.11.24"]
[Round "1"]
[White "AliKa2810"]
[Black "anemih"]
[Result "1-0"]
[WhiteElo "2591"]
[BlackElo "2294"]
[TimeControl "180+1"]
[EndTime "10:18:50 PST"]
[Termination "AliKa2810 won by resignation"]

1. d4 {[%clk 0:03:00.5]} 1... d5 {[%clk 0:02:59.8]} 2. c4 {[%clk 0:03:00.1]}
2... e6 {[%clk 0:02:58.4]} 3. Nc3 {[%clk 0:02:59.3]} 3... Nf6 {[%clk 0:02:58.3]}
4. Bg5 {[%clk 0:02:54.3]} 4... Be7 {[%clk 0:02:58.1]} 5. Nf3 {[%clk 0:02:54]}
5... h6 {[%clk 0:02:58.4]} 6. Bh4 {[%clk 0:02:53.7]} 6... O-O {[%clk 0:02:58.3]}
7. e3 {[%clk 0:02:53.8]} 7... Nbd7 {[%clk 0:02:55.3]} 8. Rc1 {[%clk 0:02:44.3]}
8... c5 {[%clk 0:02:55.1]} 9. cxd5 {[%clk 0:02:39.6]} 9... Nxd5 {[%clk
0:02:52.8]} 10. Bxe7 {[%clk 0:02:35.9]} 10... Nxe7 {[%clk 0:02:53.3]} 11. Be2
{[%clk 0:02:20.4]} 11... b6 {[%clk 0:02:49.6]} 12. O-O {[%clk 0:02:17]} 12...
Bb7 {[%clk 0:02:49.3]} 13. Qb3 {[%clk 0:02:03.6]} 13... cxd4 {[%clk 0:02:33.7]}
14. Nxd4 {[%clk 0:02:00.7]} 14... Nc5 {[%clk 0:02:33.8]} 15. Qa3 {[%clk
0:02:00.4]} 15... e5 {[%clk 0:02:32.9]} 16. Nf3 {[%clk 0:01:45.3]} 16... Ng6
{[%clk 0:02:18.2]} 17. Rfd1 {[%clk 0:01:45.2]} 17... Qf6 {[%clk 0:01:58]} 18.
Nd5 {[%clk 0:01:37.5]} 18... Bxd5 {[%clk 0:01:57.4]} 19. Rxd5 {[%clk 0:01:38.4]}
19... Rfd8 {[%clk 0:01:41.3]} 20. Rxd8+ {[%clk 0:01:37.4]} 20... Rxd8 {[%clk
0:01:40.5]} 21. Qxa7 {[%clk 0:01:34.9]} 21... Rd2 {[%clk 0:01:40.4]} 22. Nxd2
{[%clk 0:01:33.4]} 1-0

[Event "*** Titled Tuesday Blitz"]
[Site "Chess.com"]
[Date "2020.11.24"]
[Round "1"]
[White "1nikolachess"]
[Black "Pelopidass"]
[Result "0-1"]
[WhiteElo "2309"]
[BlackElo "2608"]
[TimeControl "180+1"]
[EndTime "10:19:01 PST"]
[Termination "Pelopidass won by resignation"]

1. e4 {[%clk 0:03:00.9]} 1... c5 {[%clk 0:02:58.3]} 2. Nf3 {[%clk 0:03:01.4]}
2... d6 {[%clk 0:02:58.1]} 3. d4 {[%clk 0:03:01.6]} 3... cxd4 {[%clk 0:02:59]}
4. Nxd4 {[%clk 0:03:02]} 4... Nf6 {[%clk 0:02:58.8]} 5. Nc3 {[%clk 0:03:02.4]}
5... a6 {[%clk 0:02:59]} 6. Be3 {[%clk 0:03:01.1]} 6... e5 {[%clk 0:02:58.4]} 7.
Nb3 {[%clk 0:03:00.1]} 7... Be6 {[%clk 0:02:58.7]} 8. f3 {[%clk 0:02:59.4]} 8...
Be7 {[%clk 0:02:58.2]} 9. Qd2 {[%clk 0:02:59.5]} 9... Nbd7 {[%clk 0:02:57.9]}
10. O-O-O {[%clk 0:02:59.3]} 10... O-O {[%clk 0:02:56.7]} 11. g4 {[%clk
0:02:58.6]} 11... b5 {[%clk 0:02:57.2]} 12. g5 {[%clk 0:02:58]} 12... b4 {[%clk
0:02:53.7]} 13. Nd5 {[%clk 0:02:34.4]} 13... Nxd5 {[%clk 0:02:51.6]} 14. exd5
{[%clk 0:02:35.3]} 14... Bf5 {[%clk 0:02:52]} 15. h4 {[%clk 0:02:29.9]} 15... a5
{[%clk 0:02:51.8]} 16. Bd3 {[%clk 0:02:26.9]} 16... Bxd3 {[%clk 0:02:45.2]} 17.
Qxd3 {[%clk 0:02:27.8]} 17... a4 {[%clk 0:02:44.1]} 18. Nd2 {[%clk 0:02:24.9]}
18... f5 {[%clk 0:02:02.9]} 19. gxf6 {[%clk 0:02:23.1]} 19... Nxf6 {[%clk
0:02:02.9]} 20. Ne4 {[%clk 0:02:19]} 20... Nxe4 {[%clk 0:02:02.1]} 21. fxe4
{[%clk 0:02:19.9]} 21... Qc7 {[%clk 0:01:56.8]} 22. Kb1 {[%clk 0:02:19.7]} 22...
Rac8 {[%clk 0:01:41.3]} 23. h5 {[%clk 0:02:14.1]} 23... Qc4 {[%clk 0:01:40.1]}
24. Rdg1 {[%clk 0:02:00.6]} 24... Rf3 {[%clk 0:01:28.8]} 25. Qe2 {[%clk
0:01:43.7]} 25... Qxe2 {[%clk 0:01:25.7]} 0-1

[Event "*** Titled Tuesday Blitz"]
[Site "Chess.com"]
[Date "2020.11.24"]
[Round "1"]
[White "Aygehovit1992"]
[Black "IceBelka"]
[Result "1-0"]
[WhiteElo "2645"]
[BlackElo "2334"]
[TimeControl "180+1"]
[EndTime "10:19:06 PST"]
[Termination "Aygehovit1992 won by checkmate"]

1. e4 {[%clk 0:02:59.9]} 1... c6 {[%clk 0:02:58]} 2. d4 {[%clk 0:02:59]} 2... d5
{[%clk 0:02:57.9]} 3. f3 {[%clk 0:02:58.7]} 3... e6 {[%clk 0:02:54.7]} 4. Be3
{[%clk 0:02:56.6]} 4... Nf6 {[%clk 0:02:37.8]} 5. Nc3 {[%clk 0:02:55.7]} 5...
Be7 {[%clk 0:02:37.4]} 6. e5 {[%clk 0:02:52.7]} 6... Nfd7 {[%clk 0:02:36.9]} 7.
f4 {[%clk 0:02:53.1]} 7... c5 {[%clk 0:02:36.6]} 8. Nf3 {[%clk 0:02:53.6]} 8...
Nc6 {[%clk 0:02:36.4]} 9. Qd2 {[%clk 0:02:53.9]} 9... cxd4 {[%clk 0:02:26.3]}
10. Nxd4 {[%clk 0:02:53.2]} 10... Nxd4 {[%clk 0:02:26.2]} 11. Bxd4 {[%clk
0:02:50.7]} 11... Bc5 {[%clk 0:02:24.4]} 12. Nb5 {[%clk 0:02:47]} 12... O-O
{[%clk 0:02:11.9]} 13. Bd3 {[%clk 0:02:45.1]} 13... Bxd4 {[%clk 0:02:10]} 14.
Nxd4 {[%clk 0:02:46]} 14... a6 {[%clk 0:02:02.9]} 15. O-O {[%clk 0:02:45.6]}
15... Qb6 {[%clk 0:01:54.4]} 16. c3 {[%clk 0:02:45.5]} 16... Nc5 {[%clk
0:01:46.5]} 17. Rf2 {[%clk 0:02:42]} 17... Bd7 {[%clk 0:01:31.6]} 18. Re1 {[%clk
0:02:40.2]} 18... Rac8 {[%clk 0:01:28.7]} 19. Bb1 {[%clk 0:02:35.6]} 19... Bc6
{[%clk 0:00:53.4]} 20. f5 {[%clk 0:02:31.9]} 20... exf5 {[%clk 0:00:49.4]} 21.
Nxf5 {[%clk 0:02:32.1]} 21... Ne4 {[%clk 0:00:44.4]} 22. Bxe4 {[%clk 0:02:30.8]}
22... dxe4 {[%clk 0:00:45.3]} 23. Qg5 {[%clk 0:02:28.6]} 23... g6 {[%clk
0:00:40.1]} 24. Ne7+ {[%clk 0:02:27.7]} 24... Kg7 {[%clk 0:00:36.6]} 25. Qf6+
{[%clk 0:02:28.6]} 25... Kh6 {[%clk 0:00:36.9]} 26. Nf5+ {[%clk 0:02:28.7]}
26... Kh5 {[%clk 0:00:37.2]} 27. Qh4# {[%clk 0:02:28.8]} 1-0

[Event "*** Titled Tuesday Blitz"]
[Site "Chess.com"]
[Date "2020.11.24"]
[Round "1"]
[White "temus_galaktionov"]
[Black "Manukyan_Artak"]
[Result "1-0"]
[WhiteElo "2682"]
[BlackElo "2360"]
[TimeControl "180+1"]
[EndTime "10:19:15 PST"]
[Termination "temus_galaktionov won by resignation"]

1. d4 {[%clk 0:03:00.9]} 1... Nf6 {[%clk 0:02:59.3]} 2. Nf3 {[%clk 0:03:01.3]}
2... g6 {[%clk 0:02:59.6]} 3. c4 {[%clk 0:03:01.8]} 3... Bg7 {[%clk 0:03:00.5]}
4. Nc3 {[%clk 0:03:02.3]} 4... O-O {[%clk 0:03:01.4]} 5. e4 {[%clk 0:03:02.1]}
5... d6 {[%clk 0:03:02.3]} 6. Be2 {[%clk 0:03:03]} 6... e5 {[%clk 0:03:03]} 7.
O-O {[%clk 0:03:02.8]} 7... Nc6 {[%clk 0:03:02.6]} 8. d5 {[%clk 0:03:03]} 8...
Ne7 {[%clk 0:03:02.6]} 9. Ne1 {[%clk 0:03:03.9]} 9... Nd7 {[%clk 0:03:02.5]} 10.
f3 {[%clk 0:03:04.8]} 10... a5 {[%clk 0:03:01.9]} 11. g4 {[%clk 0:03:05.7]}
11... Nc5 {[%clk 0:03:01]} 12. Be3 {[%clk 0:03:01.8]} 12... f5 {[%clk 0:03:01]}
13. Nd3 {[%clk 0:03:01.6]} 13... b6 {[%clk 0:03:00.1]} 14. Nxc5 {[%clk 0:03:01]}
14... bxc5 {[%clk 0:02:59.9]} 15. Rb1 {[%clk 0:03:01]} 15... f4 {[%clk
0:02:54.8]} 16. Bf2 {[%clk 0:02:59.1]} 16... h5 {[%clk 0:02:55]} 17. g5 {[%clk
0:02:59.1]} 17... Bh3 {[%clk 0:02:49.9]} 18. Re1 {[%clk 0:02:52.3]} 18... Nc8
{[%clk 0:02:48]} 19. Kh1 {[%clk 0:02:39.7]} 19... Qxg5 {[%clk 0:02:40]} 20. Rg1
{[%clk 0:02:40.6]} 20... Qh6 {[%clk 0:02:33.9]} 21. Bf1 {[%clk 0:02:41.5]} 21...
Bd7 {[%clk 0:02:30.1]} 22. h4 {[%clk 0:02:41.1]} 22... Bf6 {[%clk 0:02:28.3]}
23. a3 {[%clk 0:02:41]} 23... Kh7 {[%clk 0:02:18.8]} 24. b4 {[%clk 0:02:40.4]}
24... axb4 {[%clk 0:02:17.9]} 25. axb4 {[%clk 0:02:41.3]} 25... cxb4 {[%clk
0:02:17.2]} 26. Rxb4 {[%clk 0:02:42.2]} 26... Rf7 {[%clk 0:02:09.3]} 27. Rb7
{[%clk 0:02:39.3]} 27... Qf8 {[%clk 0:01:59.2]} 28. Nb5 {[%clk 0:02:38.5]} 28...
Qd8 {[%clk 0:01:53.3]} 29. Qe1 {[%clk 0:02:35.1]} 29... Bxb5 {[%clk 0:01:47.3]}
30. cxb5 {[%clk 0:02:36]} 30... Ne7 {[%clk 0:01:40.4]} 31. Bh3 {[%clk
0:02:34.3]} 31... Ng8 {[%clk 0:01:36.7]} 32. Be6 {[%clk 0:02:32.8]} 32... Rg7
{[%clk 0:01:36.3]} 33. Kg2 {[%clk 0:02:26.5]} 33... g5 {[%clk 0:01:32.3]} 34.
hxg5 {[%clk 0:02:26.5]} 34... Rxg5+ {[%clk 0:01:31.9]} 35. Kh3 {[%clk
0:02:26.6]} 35... Nh6 {[%clk 0:01:29.9]} 36. b6 {[%clk 0:02:25.9]} 36... Ra3
{[%clk 0:01:16.8]} 37. Rxg5 {[%clk 0:02:25.2]} 37... Bxg5 {[%clk 0:01:14.4]} 38.
bxc7 {[%clk 0:02:24.7]} 38... Rxf3+ {[%clk 0:01:13]} 39. Kg2 {[%clk 0:02:24.4]}
39... Rxf2+ {[%clk 0:01:13.4]} 40. Qxf2 {[%clk 0:02:24.8]} 1-0

[Event "*** Titled Tuesday Blitz"]
[Site "Chess.com"]
[Date "2020.11.24"]
[Round "1"]
[White "Julianos82"]
[Black "bait_or_mate"]
[Result "1/2-1/2"]
[WhiteElo "2326"]
[BlackElo "2606"]
[TimeControl "180+1"]
[EndTime "10:19:18 PST"]
[Termination "Game drawn by repetition"]

1. d4 {[%clk 0:02:53.5]} 1... Nf6 {[%clk 0:02:59.9]} 2. Nf3 {[%clk 0:02:52.7]}
2... d5 {[%clk 0:02:59.3]} 3. Bg5 {[%clk 0:02:52]} 3... e6 {[%clk 0:02:53.3]} 4.
Nbd2 {[%clk 0:02:51]} 4... c5 {[%clk 0:02:51.4]} 5. e3 {[%clk 0:02:50.8]} 5...
Nc6 {[%clk 0:02:51.7]} 6. c3 {[%clk 0:02:50.9]} 6... Be7 {[%clk 0:02:45.2]} 7.
Bd3 {[%clk 0:02:50]} 7... h6 {[%clk 0:02:42.7]} 8. Bf4 {[%clk 0:02:47.7]} 8...
Nh5 {[%clk 0:02:41]} 9. Be5 {[%clk 0:02:41.5]} 9... Nf6 {[%clk 0:02:33.2]} 10.
Bf4 {[%clk 0:02:31.1]} 10... O-O {[%clk 0:02:30.1]} 11. Ne5 {[%clk 0:02:27]}
11... Nxe5 {[%clk 0:02:27.4]} 12. dxe5 {[%clk 0:02:25.8]} 12... Nd7 {[%clk
0:02:25.4]} 13. Qh5 {[%clk 0:02:24.8]} 13... f5 {[%clk 0:02:17]} 14. Qg6 {[%clk
0:02:15]} 14... Kh8 {[%clk 0:02:00.9]} 15. Bxh6 {[%clk 0:01:57]} 15... gxh6
{[%clk 0:02:01.8]} 16. Qxh6+ {[%clk 0:01:56.1]} 16... Kg8 {[%clk 0:02:01]} 17.
Qg6+ {[%clk 0:01:52.6]} 17... Kh8 {[%clk 0:02:01.1]} 18. Qh6+ {[%clk 0:01:33.2]}
18... Kg8 {[%clk 0:01:51.3]} 19. Qg6+ {[%clk 0:00:43.3]} 19... Kh8 {[%clk
0:01:50]} 20. Qh6+ {[%clk 0:00:43.5]} 1/2-1/2

[Event "*** Titled Tuesday Blitz"]
[Site "Chess.com"]
[Date "2020.11.24"]
[Round "1"]
[White "Khnykin_Nikolay"]
[Black "maxip32"]
[Result "0-1"]
[WhiteElo "2073"]
[BlackElo "2495"]
[TimeControl "180+1"]
[EndTime "10:19:36 PST"]
[Termination "maxip32 won by checkmate"]

1. e4 {[%clk 0:03:00.2]} 1... c5 {[%clk 0:02:59.5]} 2. d4 {[%clk 0:02:58.8]}
2... cxd4 {[%clk 0:02:59.1]} 3. c3 {[%clk 0:02:58]} 3... d3 {[%clk 0:02:58.2]}
4. Bxd3 {[%clk 0:02:57.3]} 4... Nc6 {[%clk 0:02:59.1]} 5. c4 {[%clk 0:02:57.3]}
5... g6 {[%clk 0:02:59.6]} 6. Nf3 {[%clk 0:02:57.4]} 6... Bg7 {[%clk 0:03:00.1]}
7. O-O {[%clk 0:02:57.9]} 7... d6 {[%clk 0:03:00]} 8. Nc3 {[%clk 0:02:58.2]}
8... Nf6 {[%clk 0:03:00.3]} 9. a3 {[%clk 0:02:58.6]} 9... O-O {[%clk 0:02:59.3]}
10. Bg5 {[%clk 0:02:58.4]} 10... h6 {[%clk 0:02:58.9]} 11. Bf4 {[%clk
0:02:57.7]} 11... a5 {[%clk 0:02:50]} 12. Nd5 {[%clk 0:02:53.8]} 12... Nh5
{[%clk 0:02:43.5]} 13. Bg3 {[%clk 0:02:52]} 13... Nxg3 {[%clk 0:02:39.7]} 14.
hxg3 {[%clk 0:02:49.4]} 14... Bxb2 {[%clk 0:02:39.4]} 15. Ra2 {[%clk 0:02:48.8]}
15... Bg7 {[%clk 0:02:38.9]} 16. Qe2 {[%clk 0:02:37.5]} 16... Bg4 {[%clk
0:02:34.6]} 17. Qe3 {[%clk 0:02:28.8]} 17... e6 {[%clk 0:02:31.6]} 18. Nf4
{[%clk 0:02:20.6]} 18... Bxf3 {[%clk 0:02:29.4]} 19. Qxf3 {[%clk 0:02:19.3]}
19... Ne5 {[%clk 0:02:29.4]} 20. Qd1 {[%clk 0:02:17.7]} 20... Nxd3 {[%clk
0:02:28.9]} 21. Qxd3 {[%clk 0:02:18.6]} 21... Qc7 {[%clk 0:02:27.9]} 22. Rb1
{[%clk 0:02:16.6]} 22... Rfc8 {[%clk 0:02:21]} 23. Rc2 {[%clk 0:02:12.5]} 23...
Ra6 {[%clk 0:02:18.8]} 24. c5 {[%clk 0:02:11.2]} 24... dxc5 {[%clk 0:02:16.2]}
25. Rb5 {[%clk 0:02:08.7]} 25... Rc6 {[%clk 0:02:06.5]} 26. Rc4 {[%clk
0:02:06.3]} 26... b6 {[%clk 0:02:06.5]} 27. Qf3 {[%clk 0:01:45.4]} 27... Rd8
{[%clk 0:02:03.7]} 28. Ne2 {[%clk 0:01:42]} 28... Rcd6 {[%clk 0:01:58]} 29. Kh2
{[%clk 0:01:30.4]} 29... Rd1 {[%clk 0:01:55.5]} 30. Qb3 {[%clk 0:01:27.9]} 30...
Re1 {[%clk 0:01:53.3]} 31. Nf4 {[%clk 0:01:19.5]} 31... Rdd1 {[%clk 0:01:50.7]}
32. Kh3 {[%clk 0:01:16.9]} 32... h5 {[%clk 0:01:48.1]} 33. g4 {[%clk 0:01:14.7]}
33... Qxf4 {[%clk 0:01:47.4]} 34. Rxb6 {[%clk 0:01:12.1]} 34... Rh1# {[%clk
0:01:42.1]} 0-1